bitfinex/quotes_BTCUSD_20251024
["timestamp","ask_amount","ask_price","bid_price","bid_amount"]
[1761342456028,4.07962445,111090.0,111080.0,0.022621]
[1761342460635,3.74549018,111090.0,111080.0,0.022621]
[1761342460947,4.07962445,111090.0,111080.0,0.022621]
[1761342463135,3.74549018,111090.0,111080.0,0.022621]
[1761342463349,4.07962445,111090.0,111080.0,0.022621]
[1761342463961,3.74549018,111090.0,111080.0,0.022621]
[1761342464172,4.07962445,111090.0,111080.0,0.022621]
[1761342465826,4.33962445,111090.0,111080.0,0.022621]
[1761342469386,4.00549018,111090.0,111080.0,0.022621]
[1761342469800,3.8097479,111090.0,111080.0,0.022621]
[1761342470004,0.62737814,111090.0,111080.0,0.022621]
[1761342470210,0.44545814,111090.0,111080.0,0.35675527]
[1761342470416,0.28737814,111090.0,111080.0,0.35675527]
[1761342470592,0.26794633,111090.0,111080.0,0.53680568]
[1761342470948,0.26694633,111090.0,111080.0,0.20267141]
[1761342471148,0.26494633,111090.0,111080.0,0.53680568]
[1761342472070,0.26494633,111090.0,111080.0,0.53780568]
[1761342474360,0.26494633,111090.0,111080.0,0.20367141]
[1761342474549,0.26494633,111090.0,111080.0,0.53780568]
[1761342476618,0.07337067,111090.0,111080.0,0.53780568]
[1761342480084,0.07337067,111090.0,111080.0,0.20367141]
[1761342480261,0.07337067,111090.0,111080.0,0.53780568]
[1761342482149,0.1800342,111090.0,111080.0,0.20367141]
[1761342482572,0.1800342,111090.0,111080.0,0.53780568]
[1761342482785,0.1800342,111090.0,111080.0,0.20367141]
[1761342482981,0.1800342,111090.0,111080.0,0.53780568]
[1761342483474,0.1800342,111090.0,111080.0,0.20367141]
[1761342483893,0.1800342,111090.0,111080.0,0.53780568]
[1761342486175,0.1800342,111090.0,111080.0,0.69584568]
[1761342489458,0.64582251,111100.0,111080.0,0.69584568]
[1761342489686,0.1800342,111090.0,111080.0,0.69584568]
[1761342490260,0.31168824,111100.0,111080.0,0.69484568]
[1761342491186,0.31168824,111100.0,111080.0,0.69584568]
[1761342491187,0.64582251,111100.0,111080.0,0.69584568]
[1761342491431,0.64582251,111100.0,111080.0,0.69484568]
[1761342491825,0.64582251,111100.0,111080.0,0.69784568]
[1761342493984,0.31168824,111100.0,111080.0,0.69784568]
[1761342494900,0.15360824,111100.0,111080.0,0.69784568]
[1761342495197,0.31164824,111100.0,111080.0,0.69784568]
[1761342499445,0.33109633,111100.0,111080.0,0.69784568]
[1761342500103,0.33109633,111100.0,111090.0,0.1800342]
[1761342500720,0.33109633,111100.0,111080.0,0.69784568]
[1761342501145,0.33109633,111100.0,111080.0,0.69484568]
[1761342501350,0.33109633,111100.0,111090.0,0.1800342]
[1761342501557,0.33109633,111100.0,111090.0,0.1830342]
[1761342501775,0.33109633,111100.0,111090.0,0.1800342]
[1761342503059,0.33109633,111100.0,111080.0,0.69784568]
[1761342503267,0.33109633,111100.0,111080.0,0.69484568]
[1761342503395,0.33109633,111100.0,111090.0,0.003]
[1761342505182,0.33109633,111100.0,111090.0,0.1830342]
[1761342505389,0.17305633,111100.0,111090.0,0.1830342]
[1761342505591,0.01978741,111100.0,111090.0,0.51716847]
[1761342505792,0.00033932,111100.0,111090.0,0.1830342]
[1761342505995,0.00033932,111100.0,111090.0,0.51716847]
[1761342506254,0.00033932,111100.0,111090.0,0.1830342]
[1761342507021,0.00033932,111100.0,111090.0,0.51716847]
[1761342507427,0.00033932,111100.0,111090.0,0.1830342]
[1761342510213,0.00033932,111100.0,111090.0,0.51716847]
[1761342511716,0.415521,111110.0,111090.0,0.51716847]
[1761342511915,0.66599208,111110.0,111090.0,0.51716847]
[1761342512738,0.66599208,111110.0,111090.0,0.51416847]
[1761342512943,0.67499217,111110.0,111090.0,0.51416847]
[1761342513150,0.67499217,111110.0,111090.0,0.51516847]
[1761342513989,0.67499217,111110.0,111100.0,0.180018]
[1761342515231,0.58517316,111110.0,111100.0,0.180018]
[1761342516071,0.58517316,111110.0,111100.0,0.181018]
[1761342517067,0.58517316,111110.0,111100.0,0.001]
[1761342517382,0.42713316,111110.0,111100.0,0.181018]
[1761342517610,0.58513316,111110.0,111100.0,0.181018]
[1761342519492,0.58547244,111110.0,111100.0,0.181018]
[1761342519700,0.00038846,111110.0,111100.0,0.67291322]
[1761342521408,0.00038846,111110.0,111100.0,0.67391322]
[1761342521838,0.00038846,111110.0,111100.0,0.67291322]
[1761342522035,0.00038846,111110.0,111100.0,0.67691322]
[1761342530931,0.00038846,111110.0,111100.0,0.70394946]
[1761342546225,0.00038846,111110.0,111100.0,0.37005424]
[1761342546426,0.00038846,111110.0,111100.0,0.67691322]
[1761342549916,0.00038846,111110.0,111100.0,0.67687322]
[1761342552586,0.00038846,111110.0,111100.0,0.51891322]
[1761342552925,0.00038846,111110.0,111100.0,0.67687322]
[1761342555736,0.00038846,111110.0,111100.0,0.342978]
[1761342555943,0.00038846,111110.0,111100.0,0.67687322]
[1761342556931,0.00038846,111110.0,111100.0,0.76669223]
[1761342557128,0.13840539,111130.0,111120.0,0.1799856]
[1761342557343,0.13845457,111130.0,111120.0,0.3379456]
[1761342559107,0.13845457,111130.0,111120.0,0.3389456]
[1761342560012,4.918e-05,111130.0,111120.0,1.09655505]
[1761342560219,4.918e-05,111130.0,111120.0,0.82025983]
[1761342561874,4.918e-05,111130.0,111120.0,0.81925983]
[1761342562312,4.918e-05,111130.0,111120.0,0.82125983]
[1761342562529,4.918e-05,111130.0,111120.0,0.82025983]
[1761342562701,4.918e-05,111130.0,111120.0,0.82425983]
[1761342562900,0.00072758,111130.0,111120.0,0.82425983]
[1761342564958,0.00072758,111130.0,111120.0,1.15815505]
[1761342565327,0.00072758,111130.0,111120.0,0.82425983]
[1761342566341,0.00072758,111130.0,111120.0,1.15815505]
[1761342568500,0.00072758,111130.0,111120.0,1.49815505]
[1761342568887,0.00072758,111130.0,111120.0,1.16425983]
[1761342569046,0.00072758,111130.0,111120.0,1.49815505]
[1761342570541,0.00072758,111130.0,111120.0,1.16425983]
[1761342570758,0.00072758,111130.0,111120.0,1.49815505]
[1761342571176,0.00072758,111130.0,111120.0,1.52518152]
[1761342572249,0.18894552,111160.0,111140.0,0.51384843]
[1761342572469,0.18894552,111160.0,111150.0,0.15804]
[1761342574361,0.18894552,111160.0,111140.0,0.33799321]
[1761342574814,0.18594552,111160.0,111140.0,0.33799321]
[1761342575518,0.18394552,111160.0,111140.0,0.33799321]
[1761342575822,0.18594552,111160.0,111140.0,0.33799321]
[1761342576753,0.51956997,111160.0,111140.0,0.67161766]
[1761342577250,0.51965851,111160.0,111140.0,0.67161766]
[1761342578239,0.17993702,111150.0,111140.0,0.67161766]
[1761342578642,0.17993702,111150.0,111130.0,0.18896787]
[1761342578808,0.51356147,111150.0,111130.0,0.34700787]
[1761342579000,0.00033914,111140.0,111130.0,0.34700787]
[1761342580283,0.18029235,111140.0,111120.0,0.52898488]
[1761342580497,0.18029235,111140.0,111130.0,0.15804]
[1761342580720,0.18029235,111140.0,111130.0,0.3380094]
[1761342580957,0.18029235,111140.0,111130.0,0.67167385]
[1761342580958,0.00033914,111140.0,111130.0,0.67167385]
[1761342581195,0.00033914,111140.0,111130.0,0.67367385]
[1761342584663,0.00033914,111140.0,111130.0,0.3400494]
[1761342584874,0.00033914,111140.0,111130.0,0.67367385]
[1761342586632,1e-08,111140.0,111130.0,1.73975858]
[1761342586865,1e-08,111140.0,111130.0,1.94009794]
[1761342587338,1e-08,111140.0,111130.0,1.87257795]
[1761342587559,1e-08,111140.0,111130.0,1.97519408]
[1761342587781,0.01205803,111200.0,111180.0,0.17988846]
[1761342587999,0.18889315,111200.0,111180.0,0.3570373]
[1761342588206,0.18889315,111200.0,111180.0,0.33904846]
[1761342588207,0.00169486,111190.0,111180.0,0.33904846]
[1761342589582,0.00169486,111190.0,111180.0,0.67267291]
[1761342590550,0.00169486,111190.0,111170.0,0.68161203]
[1761342590551,0.27238616,111190.0,111170.0,0.68161203]
[1761342590769,0.2706913,111190.0,111170.0,0.68161203]
[1761342591860,0.2696913,111190.0,111170.0,0.68161203]
[1761342592260,0.17988846,111180.0,111170.0,0.68165203]
[1761342592462,0.17988846,111180.0,111170.0,0.34802758]
[1761342593557,0.17988846,111180.0,111160.0,0.68165776]
[1761342593720,0.53152202,111180.0,111160.0,0.34807687]
[1761342593926,0.51351291,111180.0,111170.0,0.001]
[1761342594716,0.51351291,111180.0,111160.0,0.34807687]
[1761342594920,0.19791376,111170.0,111160.0,0.18991687]
[1761342595114,0.19791376,111170.0,111160.0,0.34803687]
[1761342595386,0.01800911,111170.0,111160.0,0.68166132]
[1761342595600,3.19789757,111180.0,111170.0,0.001]
[1761342595798,3.17988846,111180.0,111170.0,0.001]
[1761342596032,3.18124447,111180.0,111170.0,0.001]
[1761342596723,3.0,111170.0,111160.0,0.34803687]
[1761342596993,3.0,111170.0,111160.0,0.68366132]
[1761342597240,3.0,111170.0,111160.0,0.68166132]
[1761342597573,0.17988846,111180.0,111170.0,0.17990465]
[1761342597797,0.17988846,111180.0,111170.0,0.5135291]
[1761342598182,0.43784491,111190.0,111170.0,0.5135291]
[1761342599206,0.17988846,111180.0,111170.0,0.5135291]
[1761342599420,0.43784491,111190.0,111170.0,0.5135291]
[1761342599806,0.43784491,111190.0,111170.0,0.5145291]
[1761342600420,0.43784491,111190.0,111170.0,0.5135291]
[1761342600761,0.43784491,111190.0,111170.0,0.17990465]
[1761342600948,0.43884491,111190.0,111170.0,0.53151956]
[1761342601271,0.43884491,111190.0,111170.0,0.5135291]
[1761342601882,0.3490259,111190.0,111170.0,0.17990465]
[1761342602165,0.3490259,111190.0,111180.0,0.17988846]
[1761342602407,0.3490259,111190.0,111170.0,0.5135291]
[1761342602578,0.35072076,111190.0,111170.0,0.5135291]
[1761342602782,0.3490259,111190.0,111180.0,0.17988846]
[1761342602958,0.3489059,111190.0,111180.0,0.17988846]
[1761342603164,0.3479059,111190.0,111180.0,0.17988846]
[1761342603364,0.3489059,111190.0,111180.0,0.17988846]
[1761342604373,0.3489059,111190.0,111170.0,0.5135291]
[1761342604569,0.1898659,111190.0,111170.0,0.5135291]
[1761342604775,0.3488659,111190.0,111170.0,0.5135291]
[1761342606240,0.3478659,111190.0,111170.0,0.5135291]
[1761342606471,0.3488659,111190.0,111170.0,0.5135291]
[1761342607955,0.00135601,111180.0,111170.0,0.5135291]
[1761342609513,0.00135601,111180.0,111170.0,0.5145291]
[1761342611680,0.00135601,111180.0,111170.0,0.18090465]
[1761342611894,0.00135601,111180.0,111170.0,0.5145291]
[1761342618887,0.18124447,111180.0,111170.0,0.5145291]
[1761342621252,0.18124447,111180.0,111170.0,0.18090465]
[1761342621459,0.18124447,111180.0,111170.0,0.5145291]
[1761342627998,0.18124447,111180.0,111170.0,0.18090465]
[1761342628127,0.18124447,111180.0,111170.0,0.5145291]
[1761342629767,0.00135601,111180.0,111170.0,0.5145291]
[1761342631475,0.00135601,111180.0,111170.0,0.18090465]
[1761342631686,0.00135601,111180.0,111170.0,0.5145291]
[1761342638889,0.00135601,111180.0,111170.0,0.51428046]
[1761342640785,0.00135601,111180.0,111170.0,0.60409947]
[1761342641984,0.00135601,111180.0,111170.0,0.27072366]
[1761342642221,0.00135601,111180.0,111170.0,0.60409947]
[1761342642597,0.00135601,111180.0,111170.0,0.27072366]
[1761342643015,0.00135601,111180.0,111170.0,0.60409947]
[1761342644639,0.00135601,111180.0,111170.0,0.18090465]
[1761342644855,0.00135601,111180.0,111170.0,0.33962465]
[1761342662910,0.18124447,111180.0,111170.0,0.33962465]
[1761342663892,0.18124447,111180.0,111170.0,0.001]
[1761342669638,3.84249133,111180.0,111170.0,0.001]
[1761342669858,4.21867361,111180.0,111170.0,0.001]
[1761342670058,4.30046298,111180.0,111170.0,0.001]
[1761342670890,0.17992083,111160.0,111150.0,0.18893239]
[1761342672176,0.17992083,111160.0,111150.0,0.18993239]
[1761342673242,0.19792994,111160.0,111150.0,0.19193239]
[1761342674684,0.17992083,111160.0,111150.0,0.19193239]
[1761342675679,0.17992083,111160.0,111150.0,0.01199685]
[1761342676368,0.19860807,111160.0,111150.0,0.19193387]
[1761342676566,0.18059896,111160.0,111150.0,0.003]
[1761342681951,0.18059896,111160.0,111150.0,0.002]
[1761342682980,0.18059896,111160.0,111140.0,0.68078208]
[1761342683117,0.17992083,111160.0,111150.0,0.001]
[1761342687097,0.19792994,111160.0,111150.0,0.001]
[1761342687518,0.18059896,111160.0,111150.0,0.001]
[1761342701669,0.27041797,111160.0,111150.0,0.001]
[1761342701886,3.96818715,111160.0,111150.0,0.001]
[1761342702100,3.94399778,111160.0,111150.0,0.001]
[1761342702518,0.17995321,111140.0,111130.0,0.52254768]
[1761342703983,0.17995321,111140.0,111130.0,0.52454768]
[1761342704614,0.17995321,111140.0,111130.0,0.52554768]
[1761342705027,0.17995321,111140.0,111130.0,0.003]
[1761342705443,0.17995321,111140.0,111130.0,0.33657981]
[1761342706090,0.17995321,111140.0,111130.0,0.51654921]
[1761342707355,0.19796232,111140.0,111130.0,0.51654921]
[1761342707568,0.19796232,111140.0,111130.0,0.33657981]
[1761342708224,0.19796232,111140.0,111130.0,0.003]
[1761342709944,3.62136114,111140.0,111130.0,0.003]
[1761342710097,3.63038557,111140.0,111130.0,0.002]
[1761342710533,3.6392078,111140.0,111130.0,0.002]
[1761342710841,3.61217426,111140.0,111130.0,0.002]
[1761342711057,3.61217426,111140.0,111110.0,0.54950795]
[1761342711058,0.1799856,111120.0,111110.0,0.54950795]
[1761342711665,0.1799856,111120.0,111110.0,0.21592814]
[1761342712100,0.1799856,111120.0,111110.0,0.54950795]
[1761342712307,0.1799856,111120.0,111110.0,0.54959649]
[1761342712515,0.1799856,111120.0,111110.0,0.55359649]
[1761342713290,0.1799856,111120.0,111110.0,0.55459649]
[1761342715316,0.1799856,111120.0,111110.0,0.22101668]
[1761342715514,0.1799856,111120.0,111110.0,0.55459649]
[1761342716679,0.1799856,111120.0,111110.0,0.03211984]
[1761342716897,0.19799471,111120.0,111110.0,0.00508854]
[1761342717345,0.1799856,111120.0,111110.0,0.00508854]
[1761342717783,0.1799856,111120.0,111110.0,0.00408854]
[1761342717992,0.51356541,111120.0,111110.0,8.854e-05]
[1761342718203,0.1799856,111120.0,111110.0,0.00308854]
[1761342718438,0.53157452,111120.0,111110.0,0.00308854]
[1761342718644,0.51356541,111120.0,111110.0,0.00308854]
[1761342719056,0.1799856,111120.0,111110.0,0.00308854]
[1761342719312,0.87157452,111120.0,111110.0,0.00308854]
[1761342719516,0.85356541,111120.0,111110.0,0.00308854]
[1761342720276,0.5199856,111120.0,111110.0,0.00308854]
[1761342720896,0.85356541,111120.0,111110.0,0.00308854]
[1761342722094,0.94338442,111120.0,111110.0,0.00308854]
[1761342722613,0.94338442,111120.0,111110.0,8.854e-05]
[1761342722783,0.94338442,111120.0,111110.0,0.00108854]
[1761342723536,4.00098442,111120.0,111110.0,0.00108854]
[1761342724120,4.00098442,111120.0,111110.0,8.854e-05]
[1761342724330,4.00198442,111120.0,111110.0,8.854e-05]
[1761342726929,4.33556423,111120.0,111110.0,8.854e-05]
[1761342727352,4.37174651,111120.0,111110.0,8.854e-05]
[1761342727567,4.39111444,111120.0,111110.0,8.854e-05]
[1761342729998,4.44539177,111120.0,111110.0,8.854e-05]
[1761342731381,4.39111444,111120.0,111110.0,8.854e-05]
[1761342735159,3.72395482,111120.0,111110.0,8.854e-05]
[1761342735404,4.39111444,111120.0,111110.0,8.854e-05]
[1761342736408,4.41530381,111120.0,111110.0,8.854e-05]
[1761342741531,4.44762052,111120.0,111110.0,8.854e-05]
[1761342741740,4.53743953,111120.0,111110.0,8.854e-05]
[1761342743005,4.54029115,111120.0,111110.0,8.854e-05]
[1761342743214,4.58882101,111120.0,111110.0,8.854e-05]
[1761342745104,4.9000841,111120.0,111110.0,8.854e-05]
[1761342745725,4.91526073,111120.0,111110.0,8.854e-05]
[1761342745945,4.91926073,111120.0,111110.0,8.854e-05]
[1761342746153,4.91526073,111120.0,111110.0,8.854e-05]
[1761342746363,5.01526073,111120.0,111110.0,8.854e-05]
[1761342746570,5.02126073,111120.0,111110.0,8.854e-05]
[1761342746975,5.02226073,111120.0,111110.0,8.854e-05]
[1761342747158,4.95755424,111120.0,111110.0,8.854e-05]
[1761342747305,5.02126073,111120.0,111110.0,8.854e-05]
[1761342747712,5.11706073,111120.0,111110.0,8.854e-05]
[1761342747936,5.02226073,111120.0,111110.0,8.854e-05]
[1761342748142,0.1800018,111110.0,111100.0,1e-08]
[1761342748375,5.01704504,111110.0,111100.0,4.919e-05]
[1761342748593,4.66545612,111110.0,111100.0,4.919e-05]
[1761342748803,5.02608594,111110.0,111100.0,4.919e-05]
[1761342749022,3.84719382,111090.0,111080.0,0.022621]
[1761342749152,4.20475698,111090.0,111080.0,0.02267018]
[1761342749359,4.28821367,111090.0,111080.0,0.02267018]
[1761342749775,4.31526368,111090.0,111080.0,0.02267018]
[1761342750183,4.3395073,111090.0,111080.0,0.02267018]
[1761342752409,4.3415073,111090.0,111080.0,0.02267018]
[1761342753233,4.5216673,111090.0,111080.0,0.02267018]
[1761342753710,4.7715673,111090.0,111080.0,0.02267018]
[1761342754670,4.7715673,111090.0,111080.0,0.02368818]
[1761342758302,4.25795329,111090.0,111080.0,0.02368818]
[1761342758509,4.65577439,111090.0,111080.0,0.02368818]
[1761342758733,4.40587439,111090.0,111080.0,0.02368818]
[1761342760847,4.40708471,111090.0,111080.0,0.02368818]
[1761342765099,4.74708471,111090.0,111080.0,0.02368818]
[1761342765311,4.86923994,111090.0,111080.0,0.02368818]
[1761342767831,4.84499632,111090.0,111080.0,0.02368818]
[1761342768434,4.89350066,111090.0,111080.0,0.02368818]
[1761342768616,4.86645065,111090.0,111080.0,0.02368818]
[1761342769232,4.83411443,111090.0,111080.0,0.02368818]
[1761342772351,3.68781995,111090.0,111080.0,0.02368818]
[1761342772533,3.813837,111090.0,111080.0,0.02368818]
[1761342772799,3.85001928,111090.0,111080.0,0.02368818]
[1761342773001,3.35165928,111090.0,111080.0,0.02368818]
[1761342773210,3.48580342,111090.0,111080.0,0.02368818]
[1761342773412,0.29122114,111090.0,111080.0,0.02368818]
[1761342773614,0.43025321,111090.0,111080.0,0.20373859]
[1761342774344,0.09181901,111090.0,111080.0,0.20373859]
[1761342774701,0.09181901,111090.0,111080.0,0.53792356]
[1761342774905,0.002,111090.0,111080.0,0.53792356]
[1761342775102,0.002,111090.0,111080.0,0.56496677]
[1761342775743,0.002,111090.0,111080.0,0.2307818]
[1761342776705,0.47508417,111110.0,111100.0,0.180018]
[1761342776905,0.70651554,111110.0,111100.0,0.180018]
[1761342777264,0.6871209,111110.0,111100.0,0.180018]
[1761342777652,0.33971901,111110.0,111100.0,0.180018]
[1761342777875,0.27087531,111130.0,111110.0,0.17999675]
[1761342778079,0.42820461,111120.0,111110.0,0.17999675]
[1761342778472,0.1584,111120.0,111110.0,0.17999675]
[1761342778811,3.0,111120.0,111110.0,0.17999675]
[1761342780238,3.0,111120.0,111110.0,0.2070328]
[1761342783012,0.34737945,111130.0,111120.0,0.1799856]
[1761342783230,0.27879846,111130.0,111120.0,0.1799856]
[1761342783444,0.43719846,111130.0,111120.0,0.1799856]
[1761342784298,0.43919846,111130.0,111120.0,0.1799856]
[1761342784490,0.43719846,111130.0,111120.0,0.1799856]
[1761342785539,0.08981901,111130.0,111120.0,0.1799856]
[1761342786444,0.59725087,111140.0,111120.0,0.1799856]
[1761342786577,0.68706988,111140.0,111130.0,0.1799694]
[1761342786786,0.68706988,111140.0,111120.0,0.20701962]
[1761342787748,0.68706988,111140.0,111120.0,0.20801962]
[1761342788130,0.68702988,111140.0,111130.0,0.1799694]
[1761342789161,0.52866988,111140.0,111130.0,0.1799694]
[1761342789377,0.2499,111140.0,111130.0,0.1799694]
[1761342789796,0.2499,111140.0,111130.0,0.3653996]
[1761342794643,0.18172654,111150.0,111140.0,0.17995321]
[1761342794903,0.181874,111150.0,111140.0,0.17995321]
[1761342795275,0.181874,111150.0,111140.0,0.20698141]
[1761342796350,0.183874,111150.0,111140.0,0.20698141]
[1761342799966,0.00388235,111150.0,111140.0,0.20698141]
[1761342802242,0.18381937,111150.0,111140.0,0.20698141]
[1761342802678,0.00188235,111150.0,111140.0,0.20698141]
[1761342811851,0.18181937,111150.0,111140.0,0.20698141]
[1761342814458,0.02128628,111150.0,111140.0,0.20698141]
[1761342815293,0.00188235,111150.0,111140.0,0.20698141]
[1761342815723,0.02129285,111150.0,111140.0,0.20698141]
[1761342817226,0.02129716,111150.0,111140.0,0.20698141]
[1761342825017,0.20123418,111150.0,111140.0,0.20698141]
[1761342831575,3.62466768,111150.0,111140.0,0.0270282]
[1761342831822,0.17996296,111140.0,111120.0,0.34722488]
[1761342832022,0.70924137,111140.0,111130.0,0.02703164]
[1761342832238,0.69123226,111140.0,111120.0,0.34722488]
[1761342832436,0.15824,111140.0,111120.0,0.34722488]
[1761342832615,0.1799694,111130.0,111120.0,0.37425652]
[1761342833446,0.67181745,111140.0,111120.0,0.37425652]
[1761342834389,0.67181745,111140.0,111120.0,0.37625652]
[1761342834619,0.67181745,111140.0,111120.0,0.37425652]
[1761342836318,0.67181745,111140.0,111120.0,0.37375652]
[1761342836929,0.1799694,111130.0,111120.0,0.21551652]
[1761342837132,0.1799694,111130.0,111120.0,0.21601652]
[1761342837133,0.531593,111130.0,111120.0,0.21601652]
[1761342837382,0.1799694,111130.0,111120.0,0.21601652]
[1761342837588,0.19797851,111130.0,111120.0,0.21601652]
[1761342838452,0.1799694,111130.0,111120.0,0.21601652]
[1761342838660,0.19797851,111130.0,111120.0,0.21601652]
[1761342839647,0.1799694,111130.0,111120.0,0.21601652]
[1761342839869,0.1799694,111130.0,111120.0,0.21801652]
[1761342840288,0.19797851,111130.0,111120.0,0.21801652]
[1761342842091,0.62141201,111130.0,111120.0,0.02903164]
[1761342842314,0.6034029,111130.0,111120.0,0.02903164]
[1761342843762,0.6034029,111130.0,111120.0,0.002]
[1761342843965,0.9434029,111130.0,111120.0,0.002]
[1761342844604,0.96279743,111130.0,111120.0,0.002]
[1761342847104,0.9434029,111130.0,111120.0,0.002]
[1761342847315,3.9434029,111130.0,111120.0,0.002]
[1761342849201,3.98858365,111130.0,111100.0,0.52297259]
[1761342849388,0.33823976,111120.0,111100.0,0.52297259]
[1761342850657,0.33823976,111120.0,111100.0,0.52497259]
[1761342863062,0.1800018,111110.0,111100.0,0.52497259]
[1761342864402,0.1800018,111110.0,111100.0,0.52597259]
[1761342864607,0.1800018,111110.0,111100.0,0.52397259]
[1761342864786,0.1800018,111110.0,111100.0,0.52697259]
[1761342865194,0.19801091,111110.0,111100.0,0.52697259]
[1761342869127,0.1800018,111110.0,111100.0,0.52697259]
[1761342869760,0.19801091,111110.0,111100.0,0.52697259]
[1761342870338,0.1800018,111110.0,111100.0,0.52697259]
[1761342876298,0.24027353,111130.0,111120.0,0.1799856]
[1761342876536,0.51071025,111140.0,111120.0,0.53159865]
[1761342876537,0.58810296,111140.0,111120.0,0.53159865]
[1761342876752,0.1799694,111130.0,111120.0,0.51360009]
[1761342877361,0.67792197,111140.0,111120.0,0.51360009]
[1761342878197,0.1799694,111130.0,111110.0,0.3382418]
[1761342878396,0.1799694,111130.0,111110.0,0.67185629]
[1761342878595,0.1799694,111130.0,111120.0,0.33361449]
[1761342878996,0.1799694,111130.0,111120.0,0.51360009]
[1761342881083,0.1799694,111130.0,111120.0,0.51560009]
[1761342882806,0.1799694,111130.0,111120.0,0.1819856]
[1761342885766,0.67792197,111140.0,111120.0,0.51569498]
[1761342885988,0.67792197,111140.0,111120.0,0.1819856]
[1761342886863,0.67792197,111140.0,111120.0,0.1799856]
[1761342887282,0.67792197,111140.0,111120.0,0.19798416]
[1761342888355,0.67792197,111140.0,111120.0,0.53169354]
[1761342888585,0.67792197,111140.0,111120.0,0.51369498]
[1761342891531,0.67792197,111140.0,111120.0,0.1799856]
[1761342891748,0.67792197,111140.0,111120.0,0.19798416]
[1761342893153,0.67792197,111140.0,111130.0,0.1799694]
[1761342895453,0.58810296,111140.0,111130.0,0.1799694]
[1761342898079,0.42986296,111140.0,111130.0,0.1799694]
[1761342899043,0.42986296,111140.0,111130.0,0.19796634]
[1761342900308,0.2499,111140.0,111130.0,0.19796634]
[1761342901144,0.2499,111140.0,111130.0,0.35616634]
[1761342901355,0.2499,111140.0,111130.0,0.3381694]
[1761342901563,0.2499,111140.0,111130.0,0.67187878]
[1761342902880,0.2499,111140.0,111130.0,0.67387878]
[1761342907425,0.00173489,111150.0,111140.0,0.17995321]
[1761342907584,0.00186761,111150.0,111140.0,0.19794853]
[1761342910614,0.00186761,111150.0,111140.0,0.53165791]
[1761342910792,0.00186761,111150.0,111140.0,0.51366259]
[1761342911022,0.00186761,111150.0,111140.0,0.17995321]
[1761342911211,0.00186761,111150.0,111140.0,0.19794853]
[1761342912125,0.00186761,111150.0,111140.0,0.19994853]
[1761342912324,0.00186761,111150.0,111140.0,0.51566259]
[1761342912941,0.00186761,111150.0,111140.0,0.18195321]
[1761342913142,0.00186761,111150.0,111140.0,0.19994853]
[1761342913444,0.00186761,111150.0,111140.0,0.51566259]
[1761342915370,0.00186761,111150.0,111140.0,0.18195321]
[1761342916336,0.00186761,111150.0,111140.0,0.51566259]
[1761342927297,0.00186761,111150.0,111140.0,0.51366259]
[1761342927708,0.00186761,111150.0,111140.0,0.51466259]
[1761342928022,0.00186761,111150.0,111140.0,0.51566259]
[1761342928247,0.00186761,111150.0,111140.0,0.51466259]
[1761342928587,0.00186761,111150.0,111140.0,0.51766259]
[1761342929680,0.00186761,111150.0,111140.0,0.6074816]
[1761342931800,0.00186761,111150.0,111140.0,0.61663603]
[1761342933376,0.00186761,111150.0,111140.0,0.6074816]
[1761342933890,0.00186761,111150.0,111140.0,0.9474816]
[1761342934097,0.2499,111190.0,111180.0,0.17988846]
[1761342934386,0.25003279,111190.0,111180.0,0.3560373]
[1761342934624,0.25138862,111190.0,111180.0,0.67175784]
[1761342935409,0.25138862,111190.0,111180.0,0.33804846]
[1761342935710,0.25138862,111190.0,111180.0,0.33904846]
[1761342936527,0.00148862,111190.0,111180.0,1.09628623]
[1761342936760,0.00148862,111190.0,111180.0,0.33920846]
[1761342937366,0.00148862,111190.0,111180.0,0.18088846]
[1761342937504,0.00148862,111190.0,111180.0,0.33924846]
[1761342938347,0.00148862,111190.0,111180.0,0.76185685]
[1761342938522,0.00148862,111190.0,111180.0,0.42814747]
[1761342938773,0.00348862,111190.0,111180.0,0.76185685]
[1761342939233,0.00348862,111190.0,111180.0,0.42814747]
[1761342939903,0.00148862,111190.0,111180.0,0.42814747]
[1761342940309,0.00348862,111190.0,111180.0,0.42814747]
[1761342940490,0.00148862,111190.0,111180.0,0.42814747]
[1761342940718,0.00248862,111190.0,111180.0,0.42814747]
[1761342943892,0.00248862,111190.0,111180.0,0.33832846]
[1761342944324,0.00248862,111190.0,111180.0,0.33836846]
[1761342944682,0.00248862,111190.0,111180.0,0.17988846]
[1761342944878,0.53378343,111190.0,111180.0,0.17988846]
[1761342945104,0.51577432,111190.0,111180.0,0.17988846]
[1761342945308,0.67425432,111190.0,111170.0,0.33838465]
[1761342945542,0.67289849,111190.0,111170.0,0.33838465]
[1761342945736,0.33948508,111190.0,111170.0,0.33838465]
[1761342946632,0.33848508,111190.0,111170.0,0.33838465]
[1761342946837,0.33948508,111190.0,111170.0,0.33838465]
[1761342948520,0.33948508,111190.0,111170.0,0.67179806]
[1761342949578,0.33948508,111190.0,111170.0,0.69881614]
[1761342950809,0.00101696,111180.0,111170.0,0.69881614]
[1761342952081,0.00101696,111180.0,111170.0,0.69981614]
[1761342956908,0.00101696,111180.0,111170.0,0.36640273]
[1761342961497,0.00101696,111180.0,111170.0,0.69981614]
[1761342963578,0.51431883,111180.0,111170.0,0.001]
[1761342963998,0.18090542,111180.0,111170.0,0.001]
[1761342964418,0.17990465,111170.0,111160.0,0.34725003]
[1761342964635,0.60312088,111180.0,111160.0,0.34725003]
[1761342964813,0.1584,111170.0,111160.0,0.18889003]
[1761342966238,0.1594,111170.0,111160.0,0.18889003]
[1761342969914,0.16007804,111170.0,111160.0,0.18889003]
[1761342978901,0.16007804,111170.0,111160.0,0.52230344]
[1761342985898,0.00167804,111170.0,111160.0,0.85571685]
[1761342987202,0.00161404,111170.0,111160.0,0.85571685]
[1761342987411,0.00067804,111170.0,111160.0,0.85571685]
[1761342988218,0.00167804,111170.0,111160.0,0.85571685]
[1761342988434,0.00067804,111170.0,111160.0,0.85571685]
[1761342988643,0.00067804,111170.0,111160.0,0.85671685]
[1761343004364,0.00067804,111170.0,111160.0,0.18989003]
[1761343004596,0.00067804,111170.0,111160.0,0.85671685]
[1761343004813,0.00067804,111170.0,111160.0,0.52328264]
[1761343005405,0.00067804,111170.0,111160.0,0.18989003]
[1761343005809,0.00067804,111170.0,111160.0,0.52328264]
[1761343023085,0.00067804,111170.0,111160.0,0.27970904]
[1761343023493,0.00067804,111170.0,111160.0,0.61310165]
[1761343024112,0.00067804,111170.0,111160.0,0.18989003]
[1761343024330,0.00067804,111170.0,111160.0,0.18089399]
[1761343025280,0.18058269,111170.0,111160.0,0.001]
[1761343025515,0.00067804,111170.0,111160.0,0.18092083]
[1761343025745,0.18058269,111170.0,111160.0,0.17992083]
[1761343025950,0.00167804,111170.0,111160.0,0.17992083]
[1761343059115,0.00167804,111170.0,111160.0,0.51331344]
[1761343064836,0.00167804,111170.0,111160.0,0.84666607]
[1761343067796,0.00167804,111170.0,111160.0,0.93648508]
[1761343068265,0.00067804,111170.0,111160.0,0.93648508]